bitfinex/quotes_BTCUSD_20251104
["timestamp","ask_amount","ask_price","bid_price","bid_amount"]
[1762254987161,0.45255493,104290.0,104260.0,0.35185701]
[1762254987363,0.09780627,104290.0,104260.0,0.25334701]
[1762254987548,0.09780627,104290.0,104270.0,0.09851]
[1762254987728,0.0023272,104290.0,104280.0,0.06152]
[1762254988216,0.0023272,104290.0,104280.0,0.16003]
[1762254988423,0.0053272,104290.0,104280.0,0.16003]
[1762254988884,0.0063272,104290.0,104270.0,0.29031926]
[1762254989157,0.0023272,104290.0,104270.0,0.29031926]
[1762254989400,0.0033272,104290.0,104270.0,0.09851]
[1762254989618,0.0063272,104290.0,104270.0,0.09851]
[1762254989812,0.09547907,104280.0,104250.0,0.14354907]
[1762254990013,0.09547907,104280.0,104250.0,0.47904732]
[1762254990142,0.09547907,104280.0,104250.0,0.469455]
[1762254990493,0.09547907,104280.0,104250.0,0.04807]
[1762254990494,0.86178477,104280.0,104250.0,0.04807]
[1762254990694,0.66040316,104280.0,104250.0,0.04807]
[1762254991262,0.66040316,104280.0,104250.0,0.23991582]
[1762254991469,0.0053272,104290.0,104260.0,0.21101032]
[1762254991818,0.43880627,104290.0,104260.0,0.09154]
[1762254992598,0.43780627,104290.0,104260.0,0.09154]
[1762254993018,0.43980627,104290.0,104260.0,0.28336728]
[1762254993231,0.09980627,104290.0,104260.0,0.29295868]
[1762254993433,0.09980627,104290.0,104270.0,0.09154]
[1762254993656,0.10080627,104290.0,104270.0,0.09154]
[1762254993991,0.0053272,104290.0,104270.0,0.86745334]
[1762254994206,0.0053272,104290.0,104280.0,0.06586]
[1762254994435,0.0043272,104290.0,104280.0,0.25765133]
[1762254994635,0.0023272,104290.0,104280.0,0.1574]
[1762254995005,0.0043272,104290.0,104280.0,0.06586]
[1762254995429,0.0023272,104290.0,104280.0,0.06586]
[1762254995829,0.0033272,104290.0,104280.0,0.06886]
[1762254996156,0.0023272,104290.0,104280.0,0.06886]
[1762254996375,0.0023272,104290.0,104280.0,0.26165133]
[1762254996562,0.0023272,104290.0,104280.0,0.35319133]
[1762254997032,0.63226129,104290.0,104250.0,0.14132287]
[1762254997165,0.63226129,104290.0,104250.0,0.11253]
[1762254997166,0.10367907,104280.0,104250.0,0.11253]
[1762254997372,0.31714073,104280.0,104250.0,0.02099]
[1762254997596,0.02167,104270.0,104250.0,0.02099]
[1762254998184,0.02167,104270.0,104250.0,0.11253]
[1762254998412,0.09547907,104280.0,104250.0,0.30437641]
[1762254998637,0.11714907,104280.0,104250.0,0.30437641]
[1762254999262,0.11814907,104280.0,104250.0,0.30537641]
[1762254999475,0.11814907,104280.0,104250.0,0.11353]
[1762254999898,0.09647907,104280.0,104250.0,0.11353]
[1762255000130,0.11814907,104280.0,104250.0,0.11353]
[1762255000319,0.11814907,104280.0,104250.0,0.30537552]
[1762255000546,0.11814907,104280.0,104250.0,0.30437552]
[1762255000742,0.11814907,104280.0,104250.0,0.11253]
[1762255000943,0.12214907,104280.0,104250.0,0.11253]
[1762255001190,0.12214907,104280.0,104250.0,0.30437591]
[1762255001612,0.12214907,104280.0,104250.0,0.11253]
[1762255001845,0.12214907,104280.0,104250.0,0.30437651]
[1762255002475,0.02667,104280.0,104250.0,0.30437651]
[1762255002684,0.02667,104280.0,104250.0,0.31396883]
[1762255003535,0.02667,104280.0,104260.0,0.09154]
[1762255003748,0.005,104280.0,104260.0,0.09154]
[1762255004459,0.004,104280.0,104260.0,0.09154]
[1762255004687,0.004,104280.0,104240.0,0.44952184]
[1762255004688,0.89555808,104270.0,104240.0,0.2]
[1762255004922,0.30534634,104250.0,104230.0,0.04601]
[1762255005127,0.20368165,104240.0,104220.0,0.17366606]
[1762255005333,0.01802,104230.0,104220.0,0.17366606]
[1762255005720,0.20990333,104230.0,104220.0,0.17366606]
[1762255006171,0.20990333,104230.0,104220.0,0.17371455]
[1762255006376,0.01802,104230.0,104220.0,0.17371455]
[1762255006569,0.20990333,104230.0,104220.0,0.17371455]
[1762255006727,0.01802,104230.0,104220.0,0.17371455]
[1762255007104,0.01802,104230.0,104220.0,0.17471455]
[1762255007299,0.20990333,104230.0,104220.0,0.17471455]
[1762255008203,0.3234024,104230.0,104220.0,0.12664455]
[1762255008373,0.88832649,104230.0,104220.0,0.12664455]
[1762255008882,0.88832649,104230.0,104220.0,0.12964455]
[1762255009451,0.88832649,104230.0,104220.0,0.12864455]
[1762255009657,0.88932649,104230.0,104220.0,0.12864455]
[1762255010066,0.87130649,104230.0,104220.0,0.12564455]
[1762255010507,0.87330649,104230.0,104220.0,0.12564455]
[1762255011511,1.21330649,104230.0,104220.0,0.12564455]
[1762255012489,0.6483824,104230.0,104220.0,0.12564455]
[1762255012884,0.53488333,104230.0,104220.0,0.12564455]
[1762255013902,1.19528649,104230.0,104220.0,0.12564455]
[1762255014740,0.191957,104190.0,104180.0,0.0464]
[1762255014946,0.1919552,104200.0,104180.0,0.0464485]
[1762255015140,0.1919552,104200.0,104180.0,0.2024085]
[1762255016766,0.1929552,104200.0,104180.0,0.2024085]
[1762255017813,0.1929552,104200.0,104180.0,0.2034085]
[1762255018215,0.1929552,104200.0,104180.0,0.2024085]
[1762255018662,0.002,104200.0,104180.0,0.2024085]
[1762255020395,0.19393922,104200.0,104180.0,0.2024085]
[1762255020595,0.19393922,104200.0,104190.0,0.0007204]
[1762255021007,0.002,104200.0,104190.0,0.0007204]
[1762255021342,0.19193857,104200.0,104190.0,0.0007204]
[1762255021792,0.19293857,104200.0,104190.0,0.0007204]
[1762255022609,0.001,104200.0,104190.0,0.0007204]
[1762255022823,0.002,104200.0,104190.0,0.0007204]
[1762255023200,0.19393857,104200.0,104190.0,0.0007204]
[1762255023612,0.002,104200.0,104190.0,0.1100804]
[1762255023822,0.002,104200.0,104190.0,0.76800449]
[1762255024015,0.002,104200.0,104190.0,0.96800449]
[1762255024362,0.002,104200.0,104190.0,0.76800449]
[1762255024572,0.2014973,104220.0,104190.0,0.76800449]
[1762255024745,0.2014973,104220.0,104200.0,0.093]
[1762255024942,0.54147799,104230.0,104200.0,0.093]
[1762255025293,0.19190178,104220.0,104200.0,0.093]
[1762255025854,1.10640208,104230.0,104210.0,0.0464]
[1762255026055,0.19190174,104220.0,104210.0,0.0464]
[1762255027243,0.19190174,104220.0,104210.0,0.0484]
[1762255028241,0.54147799,104230.0,104210.0,0.002]
[1762255028443,0.19190174,104220.0,104210.0,0.002]
[1762255029515,0.19190174,104220.0,104210.0,0.001]
[1762255029729,0.19192016,104210.0,104200.0,0.0464]
[1762255031387,0.19192016,104210.0,104200.0,0.0474]
[1762255031802,0.75684425,104210.0,104200.0,0.00148024]
[1762255032826,0.19192016,104210.0,104200.0,0.00148024]
[1762255033087,0.1919025,104220.0,104200.0,0.15844024]
[1762255033264,0.19190243,104220.0,104200.0,0.15696]
[1762255033679,0.63695706,104230.0,104200.0,0.093]
[1762255033680,0.002,104210.0,104200.0,0.093]
[1762255033882,0.19190229,104220.0,104200.0,0.093]
[1762255034112,0.004,104210.0,104200.0,0.093]
[1762255034324,0.004,104210.0,104200.0,0.11219385]
[1762255034526,0.63695706,104230.0,104200.0,0.15596]
[1762255034794,0.63695706,104230.0,104210.0,0.06296]
[1762255037628,0.17918795,104220.0,104210.0,0.001]
[1762255037793,0.17918795,104220.0,104210.0,0.002]
[1762255038611,0.17918795,104220.0,104210.0,0.00224011]
[1762255041341,0.74411204,104220.0,104210.0,0.00224011]
[1762255042955,1.10208736,104220.0,104210.0,0.00224011]
[1762255043701,1.10208736,104220.0,104210.0,0.00124011]
[1762255043916,1.10208736,104220.0,104210.0,0.00024011]
[1762255044114,1.10308736,104220.0,104210.0,0.00024011]
[1762255044372,1.23460573,104220.0,104210.0,0.00024011]
[1762255044720,0.53916327,104220.0,104210.0,0.00024011]
[1762255044921,0.52118795,104220.0,104210.0,0.00024011]
[1762255045124,0.18118795,104220.0,104210.0,0.00024011]
[1762255046865,0.18018795,104220.0,104210.0,0.00024011]
[1762255047084,0.17918795,104220.0,104210.0,0.00024011]
[1762255047305,0.17918795,104220.0,104210.0,0.00224011]
[1762255047651,0.19716646,104220.0,104210.0,0.00224011]
[1762255047855,0.89260892,104220.0,104210.0,0.00224011]
[1762255048129,1.23260892,104220.0,104210.0,0.00224011]
[1762255049303,1.23260892,104220.0,104210.0,0.00124011]
[1762255049721,1.23360892,104220.0,104210.0,0.00124011]
[1762255049922,1.23360892,104220.0,104210.0,0.00024011]
[1762255050120,1.23460892,104220.0,104210.0,0.00024011]
[1762255050350,0.53916646,104220.0,104210.0,0.00024011]
[1762255051228,0.53816646,104220.0,104210.0,0.00024011]
[1762255051463,0.53716646,104220.0,104210.0,0.00024011]
[1762255051933,0.53716646,104220.0,104210.0,0.00124011]
[1762255052165,1.2687912,104220.0,104210.0,0.00124011]
[1762255052377,1.28950818,104220.0,104210.0,0.00124011]
[1762255052818,1.28950818,104220.0,104210.0,0.00224011]
[1762255053262,1.28950818,104220.0,104210.0,0.00124011]
[1762255053671,1.29050818,104220.0,104210.0,0.00024011]
[1762255053901,1.29150818,104220.0,104210.0,0.00024011]
[1762255054326,0.92552648,104220.0,104210.0,0.00024011]
[1762255057145,0.23008402,104220.0,104210.0,0.00024011]
[1762255057369,0.19390174,104220.0,104210.0,0.00024011]
[1762255057812,0.002,104220.0,104210.0,0.00024011]
[1762255058670,0.001,104220.0,104210.0,0.00024011]
[1762255058876,0.20147799,104230.0,104210.0,0.00024011]
[1762255059306,0.20147799,104230.0,104210.0,0.00124011]
[1762255059510,0.19190174,104220.0,104210.0,0.00124011]
[1762255059662,0.19190174,104220.0,104210.0,0.00024011]
[1762255060073,0.19190174,104220.0,104210.0,0.00124011]
[1762255060904,0.19190174,104220.0,104210.0,0.00324011]
[1762255061257,0.19190174,104220.0,104210.0,0.00524011]
[1762255061653,0.19166899,104220.0,104210.0,0.00324011]
[1762255062418,0.19166899,104220.0,104210.0,0.00024011]
[1762255062628,0.19166899,104220.0,104210.0,0.00124011]
[1762255063198,0.19166899,104220.0,104210.0,0.00224011]
[1762255066362,0.20147799,104230.0,104210.0,0.19676011]
[1762255066597,0.20146942,104240.0,104220.0,0.10447]
[1762255066818,0.20146942,104240.0,104230.0,0.10447]
[1762255067054,0.20146942,104240.0,104230.0,0.04579]
[1762255067498,0.29700044,104250.0,104230.0,0.10447]
[1762255067741,0.20152137,104250.0,104230.0,0.19452]
[1762255067966,0.20146887,104260.0,104240.0,0.14873]
[1762255068846,0.19184652,104250.0,104240.0,0.14873]
[1762255069287,0.2172889,104260.0,104240.0,0.14873]
[1762255070224,0.004,104250.0,104240.0,0.14873]
[1762255070651,0.19482917,104260.0,104240.0,0.14873]
[1762255070872,0.003,104260.0,104250.0,0.05868]
[1762255071072,0.19182812,104260.0,104250.0,0.14873]
[1762255072048,0.20082812,104260.0,104250.0,0.14873]
[1762255072450,0.20082812,104260.0,104240.0,0.09005]
[1762255072451,0.19184652,104250.0,104240.0,0.09005]
[1762255072885,0.19184652,104250.0,104240.0,0.14873]
[1762255073313,0.19482812,104260.0,104240.0,0.14873]
[1762255073501,0.003,104260.0,104240.0,0.14873]
[1762255073714,0.004,104250.0,104240.0,0.14873]
[1762255074677,0.004,104250.0,104240.0,0.35978141]
[1762255074903,0.006,104250.0,104240.0,0.68059492]
[1762255075119,0.002,104250.0,104240.0,0.68059492]
[1762255075338,0.002,104250.0,104240.0,1.57532453]
[1762255075578,0.002,104250.0,104240.0,1.57632453]
[1762255075797,0.006,104260.0,104240.0,1.61250681]
[1762255076029,0.00184252,104280.0,104250.0,1.4466031]
[1762255076260,0.00184252,104280.0,104270.0,0.10447]
[1762255076491,0.00184252,104280.0,104270.0,0.46365097]
[1762255076713,0.00184252,104280.0,104270.0,0.53452]
[1762255077192,0.00184252,104280.0,104270.0,0.72632972]
[1762255077420,0.001891,104280.0,104270.0,1.42105933]
[1762255077645,0.001891,104280.0,104270.0,1.46357933]
[1762255078123,0.001891,104280.0,104270.0,0.76884972]
[1762255078376,0.001891,104280.0,104270.0,1.46357933]
[1762255079672,0.001891,104280.0,104270.0,1.47641722]
[1762255080402,0.001891,104280.0,104270.0,1.47841722]
[1762255080883,0.001891,104280.0,104270.0,1.27376961]
[1762255081130,0.001891,104280.0,104270.0,1.46557933]
[1762255081301,0.001891,104280.0,104270.0,0.77084972]
[1762255081512,0.001891,104280.0,104270.0,0.77184972]
[1762255082126,0.001891,104280.0,104270.0,0.77084972]
[1762255082529,0.001891,104280.0,104270.0,0.78676414]
[1762255083220,0.001891,104280.0,104270.0,1.48149375]
[1762255083446,0.0002,104310.0,104300.0,0.34]
[1762255083647,0.00068493,104310.0,104300.0,1.41769416]
[1762255084034,0.00910069,104320.0,104310.0,0.53173617]
[1762255084241,0.00914916,104320.0,104310.0,1.22646578]
[1762255084501,0.00914916,104320.0,104310.0,1.22924961]
[1762255084716,0.00914916,104320.0,104310.0,0.577]
[1762255084915,0.00914916,104320.0,104310.0,0.53452]
[1762255085517,0.00914916,104320.0,104310.0,0.72625617]
[1762255085673,0.00914916,104320.0,104310.0,0.53752]
[1762255086075,0.00914916,104320.0,104310.0,0.72925617]
[1762255086711,0.00914916,104320.0,104310.0,0.53752]
[1762255086911,0.00914916,104320.0,104310.0,0.73025617]
[1762255087120,0.00914916,104320.0,104310.0,0.53452]
[1762255087284,0.01014916,104320.0,104310.0,0.53452]
[1762255087488,0.01014916,104320.0,104310.0,0.72625617]
[1762255088008,0.01014916,104320.0,104310.0,0.53452]
[1762255089286,0.01014916,104320.0,104310.0,0.577]
[1762255089503,0.01014916,104320.0,104310.0,0.76873617]
[1762255090414,0.01014916,104320.0,104310.0,1.46346578]
[1762255090862,0.0002,104330.0,104320.0,0.39171779]
[1762255091080,0.0002,104330.0,104320.0,1.2351774]
[1762255091293,0.0002,104330.0,104320.0,1.5751774]
[1762255091500,0.0002,104330.0,104320.0,1.81135968]
[1762255091712,0.0002,104340.0,104330.0,1.2626113]
[1762255091926,0.0002,104340.0,104330.0,1.59509037]
[1762255092143,0.0002,104350.0,104340.0,1.08641065]
[1762255092365,0.0002,104350.0,104340.0,0.88041104]
[1762255092577,0.0002,104350.0,104340.0,1.57514065]
[1762255092992,0.0002,104350.0,104340.0,1.38345961]
[1762255093204,0.0002,104350.0,104340.0,0.48873]
[1762255093421,0.79067046,104370.0,104340.0,0.48873]
[1762255093646,0.28771243,104370.0,104340.0,0.48873]
[1762255093864,0.19164548,104360.0,104340.0,0.48873]
[1762255094089,0.19164548,104360.0,104340.0,0.39868]
[1762255094313,0.008,104350.0,104340.0,0.39968]
[1762255094536,0.29729496,104370.0,104340.0,0.48873]
[1762255094751,0.00167778,104350.0,104340.0,0.48873]
[1762255095229,0.00014541,104370.0,104350.0,0.73166178]
[1762255095450,0.00014541,104370.0,104360.0,1.24853404]
[1762255095679,0.00014541,104370.0,104360.0,0.53464]
[1762255096412,0.00014541,104370.0,104360.0,0.7262843]
[1762255097477,0.00014541,104370.0,104360.0,0.7272843]
[1762255097808,0.00014541,104370.0,104360.0,0.53564]
[1762255098245,0.00014541,104370.0,104360.0,0.53764]
[1762255099043,0.00014541,104370.0,104360.0,0.7292843]
[1762255099253,0.00014541,104370.0,104360.0,0.53764]
[1762255100532,0.19207135,104370.0,104360.0,0.003]
[1762255101003,0.88680096,104370.0,104360.0,0.003]
[1762255101205,0.92298324,104370.0,104360.0,0.003]
[1762255101406,0.22873274,104370.0,104360.0,0.001]
[1762255101683,0.92346235,104370.0,104360.0,0.001]
[1762255101930,0.0389568,104370.0,104350.0,0.04551]
[1762255102178,0.1917943,104360.0,104340.0,0.04551]
[1762255102384,0.29700558,104360.0,104330.0,0.47373]
[1762255103129,0.19166317,104350.0,104330.0,0.47373]
[1762255103350,0.19166336,104350.0,104330.0,0.47373]
[1762255103695,0.99158519,104360.0,104330.0,0.04579]
[1762255103901,0.99158519,104360.0,104330.0,0.13373]
[1762255104341,0.29685558,104360.0,104330.0,0.13373]
[1762255104561,0.19166309,104350.0,104330.0,0.13573]
[1762255104777,0.29685558,104360.0,104330.0,0.13673]
[1762255104994,0.29685666,104360.0,104330.0,0.13373]
[1762255105210,0.10521128,104360.0,104330.0,0.13373]
[1762255105453,0.00014541,104370.0,104350.0,0.1067]
[1762255105674,0.00014541,104370.0,104360.0,0.06119]
[1762255106096,0.00014541,104370.0,104360.0,0.6807743]
[1762255106943,0.00014541,104370.0,104360.0,1.24450108]
[1762255107144,0.00214541,104370.0,104360.0,1.24450108]
[1762255107798,0.00814541,104370.0,104360.0,1.24550108]
[1762255108232,0.02262452,104370.0,104360.0,0.6827743]
[1762255108443,0.001,104380.0,104370.0,0.19162594]
[1762255108665,0.025,104440.0,104390.0,0.74116706]
[1762255108880,0.56372678,104420.0,104400.0,0.01915708]
[1762255109088,0.28703353,104410.0,104390.0,0.04551]
[1762255109302,0.09547907,104410.0,104390.0,0.04551]
[1762255109512,0.22771778,104420.0,104400.0,0.14913]
[1762255109740,0.11541907,104410.0,104390.0,0.38551]
[1762255110193,0.01994,104410.0,104390.0,0.47252]
[1762255110403,0.09547907,104430.0,104400.0,0.14573]
[1762255110620,0.30693552,104430.0,104400.0,0.14573]
[1762255110834,0.21698451,104440.0,104420.0,0.05972]
[1762255111061,0.30693491,104430.0,104410.0,0.04219]
[1762255111349,0.32687491,104430.0,104410.0,0.04219]
[1762255111748,0.19153418,104420.0,104410.0,0.04219]
[1762255111987,0.21147418,104420.0,104400.0,0.1342]
[1762255112153,0.01994,104410.0,104400.0,0.006]
[1762255112358,0.86229748,104430.0,104400.0,0.006]
[1762255112359,0.3185107,104430.0,104400.0,0.006]
[1762255112561,0.19153678,104420.0,104400.0,0.006]
[1762255112771,0.21147678,104420.0,104400.0,0.006]
[1762255112973,0.22105348,104420.0,104390.0,0.47152]
[1762255113271,0.21149308,104410.0,104390.0,0.38551]
[1762255113603,0.32691215,104410.0,104390.0,0.04551]
[1762255114016,0.32691215,104410.0,104400.0,0.003]
[1762255114431,0.21151359,104400.0,104390.0,0.001]
[1762255114790,0.00071838,104400.0,104390.0,0.002]
[1762255114995,0.00071838,104400.0,104390.0,0.06172]
[1762255116141,0.00071838,104400.0,104390.0,0.14773]
[1762255116363,0.00071838,104400.0,104390.0,0.14573]
[1762255116571,0.00071838,104400.0,104380.0,0.38219]
[1762255116782,0.21151134,104400.0,104380.0,0.38219]
[1762255116985,0.00047897,104390.0,104380.0,0.38219]
[1762255117195,0.00047897,104390.0,104380.0,0.04219]
[1762255117401,0.02041897,104390.0,104370.0,0.04551]
[1762255117607,0.22108988,104400.0,104370.0,0.13152]
[1762255117833,0.20114988,104400.0,104370.0,0.13152]
[1762255118050,0.20114988,104400.0,104380.0,0.009]
[1762255118255,0.09547907,104390.0,104380.0,0.006]
[1762255118668,0.3070083,104390.0,104380.0,0.006]
[1762255118912,0.09547907,104410.0,104380.0,0.71545678]
[1762255119101,0.00014536,104410.0,104390.0,0.05972]
[1762255119309,0.00014536,104410.0,104390.0,0.14573]
[1762255119518,0.00014536,104410.0,104400.0,0.05972]
[1762255119714,0.3,104410.0,104400.0,0.05972]
[1762255119916,0.3,104410.0,104390.0,0.64973678]
[1762255120569,0.3,104410.0,104390.0,0.65573678]
[1762255121018,0.49155351,104410.0,104390.0,0.43201]
[1762255121521,0.3,104410.0,104390.0,0.43201]
[1762255122887,0.3,104410.0,104390.0,0.62359863]
[1762255123132,0.3,104410.0,104400.0,0.14573]
[1762255123332,0.3,104410.0,104400.0,1.25708065]
[1762255123491,0.30095775,104410.0,104400.0,1.04945678]
[1762255123716,0.30095775,104410.0,104400.0,1.24102766]
[1762255124609,0.30095775,104410.0,104400.0,1.24302766]
[1762255125787,0.30095775,104410.0,104400.0,0.48773]
[1762255125998,0.30095775,104410.0,104400.0,1.05445678]
[1762255126191,0.30095775,104410.0,104400.0,1.05245678]
[1762255126428,0.30095775,104410.0,104400.0,1.05345678]
[1762255126641,0.30095775,104410.0,104400.0,1.24502766]
[1762255126850,0.30095775,104410.0,104400.0,0.351]
[1762255127049,0.30095775,104410.0,104400.0,0.40672]
[1762255127281,0.30095775,104410.0,104400.0,0.48747]
[1762255127478,0.30095775,104410.0,104400.0,1.05119678]
[1762255127683,0.30095775,104410.0,104400.0,1.24276766]
[1762255128461,0.30095775,104410.0,104400.0,1.28536766]
[1762255129036,0.30095775,104410.0,104400.0,1.27836766]
[1762255129429,0.30095775,104410.0,104400.0,1.84709444]
[1762255129869,0.30095775,104410.0,104400.0,1.27436766]
[1762255130093,0.30695775,104410.0,104400.0,1.88633523]
[1762255130274,0.025,104440.0,104430.0,0.53151584]
[1762255130474,0.02548442,104440.0,104430.0,1.19559262]
[1762255130683,0.29649502,104470.0,104430.0,1.27634262]
[1762255130880,0.29664031,104470.0,104440.0,0.42075]
[1762255131084,0.3087584,104470.0,104440.0,0.42075]
[1762255131240,0.09562436,104470.0,104450.0,0.04463]
[1762255131662,0.00014529,104470.0,104450.0,0.12538]
[1762255131872,0.00014529,104470.0,104460.0,0.05572]
[1762255132287,0.00014529,104470.0,104460.0,0.13647]
[1762255132495,0.00010529,104470.0,104460.0,0.13647]
[1762255132696,0.00010529,104470.0,104460.0,0.05572]
[1762255132902,0.1915478,104470.0,104450.0,0.12538]
[1762255133111,0.1915478,104470.0,104460.0,0.001]
[1762255133519,0.32320915,104470.0,104460.0,0.001]
[1762255133725,0.19147677,104460.0,104440.0,0.34]
[1762255133985,0.19147917,104450.0,104440.0,0.34]
[1762255134195,0.19146218,104460.0,104440.0,0.08075]
[1762255134529,0.33278127,104470.0,104440.0,0.13647]
[1762255134914,0.13176664,104470.0,104450.0,0.04463]
[1762255135120,0.28702714,104470.0,104450.0,0.04463]
[1762255135521,0.28702868,104470.0,104450.0,0.04463]
[1762255135913,0.19146084,104460.0,104450.0,0.04463]
[1762255136315,0.19265723,104460.0,104450.0,0.04463]
[1762255137587,0.00119639,104460.0,104450.0,0.04463]
[1762255138155,0.19265723,104460.0,104450.0,0.04463]
[1762255138555,0.19265723,104460.0,104450.0,0.04563]
[1762255138744,0.00119639,104460.0,104450.0,0.04563]
[1762255139191,0.00119639,104460.0,104450.0,0.44135]
[1762255139402,0.00119639,104460.0,104450.0,1.27730595]
[1762255139822,0.18669919,104480.0,104470.0,0.04463]
[1762255140034,0.19142419,104480.0,104470.0,0.04463]
[1762255140468,0.29645776,104490.0,104470.0,0.04463]
[1762255140661,0.29645776,104490.0,104480.0,0.05572]
[1762255140662,0.09547907,104490.0,104480.0,0.05572]
[1762255140863,10.20138874,104500.0,104480.0,0.05572]
[1762255141081,10.22337978,104500.0,104470.0,0.04463]
[1762255141286,0.20099539,104480.0,104460.0,0.34]
[1762255142014,0.20033891,104480.0,104460.0,0.42075]
[1762255142221,0.20033903,104480.0,104460.0,0.34]
[1762255142431,0.20991023,104480.0,104460.0,0.34]
[1762255142864,0.00891385,104480.0,104470.0,0.001]
[1762255143126,0.00891385,104480.0,104460.0,0.42075]
[1762255143344,0.00891385,104480.0,104470.0,0.5211]
[1762255143551,10.20139109,104500.0,104470.0,0.5211]
[1762255143768,10.01890777,104500.0,104490.0,0.10035]
[1762255143982,10.23198978,104500.0,104470.0,0.12538]
[1762255144187,10.21986469,104500.0,104480.0,0.34]
[1762255144395,0.09547907,104490.0,104480.0,0.34]
[1762255144602,10.21095692,104500.0,104480.0,0.34]
[1762255144814,0.19140587,104490.0,104480.0,0.34]
[1762255145028,0.28688494,104490.0,104470.0,0.12538]
[1762255145228,0.29578804,104490.0,104470.0,0.46538]
[1762255145453,0.00047835,104480.0,104470.0,0.46538]
[1762255145801,0.00047835,104480.0,104470.0,1.27626929]
[1762255146008,0.00047835,104480.0,104470.0,1.08482678]
[1762255146232,0.00047835,104480.0,104450.0,0.12538]
[1762255146433,0.66877614,104490.0,104450.0,0.12538]
[1762255146434,0.86018286,104490.0,104460.0,0.34]
[1762255146639,0.86018286,104490.0,104460.0,0.42075]
[1762255146640,0.29578758,104490.0,104460.0,0.42075]
[1762255146805,0.013,104480.0,104470.0,0.04463]
[1762255147909,0.20442419,104480.0,104470.0,0.04463]
[1762255148132,0.19142419,104480.0,104470.0,0.04463]
[1762255148350,0.09547907,104490.0,104470.0,0.10035]
[1762255148570,0.31379284,104490.0,104470.0,0.1811]
[1762255148967,0.29579284,104490.0,104470.0,0.10035]
[1762255149582,0.29579284,104490.0,104470.0,0.10435]
[1762255149784,0.29579284,104490.0,104470.0,0.04963]
[1762255149997,0.19142419,104480.0,104470.0,0.04963]
[1762255150200,0.20033593,104480.0,104470.0,0.05163]
[1762255151140,0.20033593,104480.0,104470.0,0.04963]
[1762255151566,0.00891174,104480.0,104470.0,0.005]
[1762255151984,0.20033593,104480.0,104470.0,0.005]
[1762255152154,0.20033593,104480.0,104470.0,0.009]
[1762255152359,0.00939009,104480.0,104470.0,0.009]
[1762255152533,0.00939009,104480.0,104470.0,0.004]
[1762255152945,0.20081428,104480.0,104470.0,0.007]
[1762255153466,0.0094023,104480.0,104470.0,0.004]
[1762255153904,0.20082649,104480.0,104470.0,0.009]
[1762255154710,0.0094023,104480.0,104470.0,0.06472]
[1762255154940,0.0094023,104480.0,104470.0,0.14563]
[1762255155147,0.0094023,104480.0,104470.0,0.48563]
[1762255156394,0.00047835,104480.0,104470.0,1.24079929]
[1762255157422,0.00047835,104480.0,104470.0,1.04935678]
[1762255157669,0.00047835,104480.0,104470.0,1.24079929]
[1762255157815,0.00047835,104480.0,104470.0,0.67307251]
[1762255158014,0.00047835,104480.0,104470.0,1.23679929]
[1762255158617,0.00047835,104480.0,104470.0,1.04535678]
[1762255159246,0.00047835,104480.0,104470.0,1.04035678]
[1762255159457,0.00892237,104480.0,104470.0,1.04035678]
[1762255159659,0.00892237,104480.0,104470.0,1.23179929]
[1762255159875,10.21095783,104500.0,104480.0,0.34]
[1762255160096,10.21095783,104500.0,104480.0,0.42091]
[1762255161084,10.01,104500.0,104490.0,0.04295]
[1762255161288,10.20138755,104500.0,104490.0,0.04295]
[1762255161491,10.01,104500.0,104490.0,0.04295]
[1762255161706,10.20138755,104500.0,104490.0,0.04295]
[1762255162118,10.01,104500.0,104490.0,0.09635]
[1762255162276,10.01,104500.0,104490.0,0.51926]
[1762255162657,10.01,104500.0,104490.0,1.27439265]
[1762255162872,10.01,104500.0,104490.0,1.08298678]
[1762255163081,10.01,104500.0,104490.0,0.51726]
[1762255163315,10.20138755,104500.0,104490.0,0.09635]
[1762255163511,10.23756983,104500.0,104480.0,0.001]
[1762255163631,0.19140765,104490.0,104470.0,0.12386]
[1762255163834,0.20099635,104480.0,104450.0,0.04463]
[1762255164078,0.20099635,104480.0,104450.0,0.12568529]
[1762255164299,0.20097794,104490.0,104470.0,0.09635]
[1762255164505,0.28688595,104490.0,104470.0,0.09635]
[1762255164712,0.19142419,104480.0,104470.0,0.09635]
[1762255164884,0.19142419,104480.0,104460.0,0.42091]
[1762255165369,0.19142419,104480.0,104460.0,0.34]
[1762255165796,0.03618228,104480.0,104460.0,0.34]
[1762255166214,0.03618228,104480.0,104470.0,0.001]
[1762255166425,0.22760647,104480.0,104470.0,0.001]
[1762255166635,0.22760647,104480.0,104460.0,0.342]
[1762255166846,0.22760647,104480.0,104460.0,0.002]
[1762255167059,0.22760647,104480.0,104460.0,0.003]
[1762255167714,0.22760647,104480.0,104460.0,0.002]
[1762255167979,0.28692158,104470.0,104450.0,0.38477529]
[1762255168161,0.19146084,104460.0,104450.0,0.00014529]
[1762255168993,0.28692158,104470.0,104450.0,0.00014529]
[1762255169421,0.19146084,104460.0,104450.0,0.00014529]
[1762255170046,0.19246084,104460.0,104450.0,0.00114529]
[1762255170256,0.9203399,104460.0,104450.0,0.00114529]
[1762255170894,0.22864312,104460.0,104450.0,0.00114529]
[1762255171267,0.03718228,104460.0,104450.0,0.00014529]
[1762255171612,0.04613272,104460.0,104450.0,0.00014529]
[1762255171875,0.23759356,104460.0,104450.0,0.00114529]
[1762255172507,0.23659356,104460.0,104450.0,0.00014529]
[1762255172918,0.23659356,104460.0,104450.0,0.00314529]
[1762255173137,0.23659356,104460.0,104450.0,0.00114529]
[1762255173348,0.19151584,104430.0,104420.0,0.00183818]
[1762255173562,0.20046628,104430.0,104420.0,0.0023226]
[1762255174180,0.23664856,104430.0,104420.0,0.0023226]
[1762255175070,0.24839253,104430.0,104420.0,0.0023226]
[1762255175495,0.94008931,104430.0,104420.0,0.0033226]
[1762255175908,0.24839253,104430.0,104420.0,0.0043226]
[1762255176049,0.24839253,104430.0,104420.0,0.0033226]
[1762255176629,0.94108931,104430.0,104420.0,0.0033226]
[1762255176866,0.94108931,104430.0,104420.0,2.6e-06]
[1762255177096,0.19158923,104390.0,104380.0,0.03982]
[1762255177303,0.19158923,104390.0,104380.0,0.03996536]
[1762255177512,0.19158754,104400.0,104380.0,0.03996536]
[1762255177702,0.19158923,104390.0,104380.0,0.03996536]
[1762255177909,0.19158754,104400.0,104380.0,0.03996536]